[Event "Titled Tuesday Blitz April 12 Late 2022"]
[White "Suarez Uriel, Adrian"]
[Black "Maranhao,Jose Renato Ruiz"]
[WhiteFideId "22230874"]
[BlackFideId "2135175"]
[WhiteElo "2316"]
[BlackElo "1970"]
[Result "1-0"]
[Round "02"]
[TimeControl "180+1"]
[Date "2022.04.13"]
[WhiteClock "0:01:34"]
[BlackClock "0:00:02"]

1. d4 {[%clk 0:02:59]}  d5 {[%clk 0:03:00]} 2. c4 {[%clk 0:02:56]}  e6 {[%clk 0:02:55]} 3. Nc3 {[%clk 0:02:56]}  Nf6 {[%clk 0:02:56]} 4. e3 {[%clk 0:02:54]}  c6 {[%clk 0:02:54]} 5. Nf3 {[%clk 0:02:50]}  Nbd7 {[%clk 0:02:54]} 6. Bd3 {[%clk 0:02:49]}  dxc4 {[%clk 0:02:50]} 7. Bxc4 {[%clk 0:02:50]}  b5 {[%clk 0:02:50]} 8. Bd3 {[%clk 0:02:50]}  Bb7 {[%clk 0:02:51]} 9. e4 {[%clk 0:02:46]}  Be7 {[%clk 0:02:34]} 10. O-O {[%clk 0:02:44]}  O-O {[%clk 0:02:34]} 11. e5 {[%clk 0:02:44]}  Nd5 {[%clk 0:02:33]} 12. Ne4 {[%clk 0:02:44]}  Re8 {[%clk 0:02:25]} 13. Nfg5 {[%clk 0:02:42]}  h6 {[%clk 0:02:14]} 14. Qh5 {[%clk 0:02:33]}  hxg5 {[%clk 0:02:00]} 15. Nd6 {[%clk 0:02:25]}  Bxd6 {[%clk 0:00:53]} 16. Qh7+ {[%clk 0:02:21]}  Kf8 {[%clk 0:00:52]} 17. Qh8+ {[%clk 0:02:07]}  Ke7 {[%clk 0:00:51]} 18. Bxg5+ {[%clk 0:02:07]}  N7f6 {[%clk 0:00:43]} 19. Qxg7 {[%clk 0:02:07]}  Kd7 {[%clk 0:00:19]} 20. exd6 {[%clk 0:01:50]}  Kxd6 {[%clk 0:00:11]} 21. Qxf7 {[%clk 0:01:47]}  Rf8 {[%clk 0:00:08]} 22. Qxb7 {[%clk 0:01:44]}  a5 {[%clk 0:00:03]} 23. Rac1 {[%clk 0:01:44]}  Rc8 {[%clk 0:00:03]} 24. Rfe1 {[%clk 0:01:36]}  Rg8 {[%clk 0:00:04]} 25. Bh4 {[%clk 0:01:36]}  Qf8 {[%clk 0:00:03]} 26. Bg3+ {[%clk 0:01:34]}  e5 {[%clk 0:00:02]} 27. dxe5+ {[%clk 0:01:34]} 1-0


[Site "https://www.chess.com"]

[Event "Titled Tuesday Blitz April 12 Late 2022"]
[White "Tari, Aryan"]
[Black "Le Goff, Ronan"]
[WhiteFideId "1510045"]
[BlackFideId "612073"]
[WhiteElo "2858"]
[BlackElo "2506"]
[Result "1-0"]
[Round "02"]
[TimeControl "180+1"]
[Date "2022.04.13"]
[WhiteClock "0:01:12"]
[BlackClock "0:00:02"]

1. e4 {[%clk 0:02:51]}  e5 {[%clk 0:02:59]} 2. Nf3 {[%clk 0:02:51]}  Nc6 {[%clk 0:02:59]} 3. d4 {[%clk 0:02:51]}  exd4 {[%clk 0:02:59]} 4. Nxd4 {[%clk 0:02:52]}  Bc5 {[%clk 0:02:59]} 5. Be3 {[%clk 0:02:48]}  Qf6 {[%clk 0:02:58]} 6. Nb5 {[%clk 0:02:48]}  Bxe3 {[%clk 0:02:53]} 7. fxe3 {[%clk 0:02:49]}  Qd8 {[%clk 0:02:51]} 8. Qg4 {[%clk 0:02:48]}  Kf8 {[%clk 0:02:17]} 9. Qf4 {[%clk 0:02:44]}  d6 {[%clk 0:02:06]} 10. Bc4 {[%clk 0:02:44]}  Ne5 {[%clk 0:02:00]} 11. O-O {[%clk 0:02:45]}  Nf6 {[%clk 0:01:48]} 12. Bb3 {[%clk 0:02:44]}  a6 {[%clk 0:01:45]} 13. N5c3 {[%clk 0:02:28]}  Bd7 {[%clk 0:01:33]} 14. Nd2 {[%clk 0:02:27]}  Qe7 {[%clk 0:01:14]} 15. Nf3 {[%clk 0:02:20]}  Ng6 {[%clk 0:00:45]} 16. Qg3 {[%clk 0:02:17]}  Be6 {[%clk 0:00:35]} 17. Ng5 {[%clk 0:01:49]}  Bxb3 {[%clk 0:00:24]} 18. axb3 {[%clk 0:01:50]}  h6 {[%clk 0:00:17]} 19. Nd5 {[%clk 0:01:50]}  Qe5 {[%clk 0:00:13]} 20. Qxe5 {[%clk 0:01:19]}  Nxe5 {[%clk 0:00:11]} 21. Nf3 {[%clk 0:01:20]}  Nxd5 {[%clk 0:00:09]} 22. Nxe5 {[%clk 0:01:20]}  dxe5 {[%clk 0:00:08]} 23. exd5 {[%clk 0:01:20]}  f6 {[%clk 0:00:08]} 24. c4 {[%clk 0:01:21]}  Ke7 {[%clk 0:00:08]} 25. c5 {[%clk 0:01:21]}  Rhd8 {[%clk 0:00:07]} 26. e4 {[%clk 0:01:22]}  b6 {[%clk 0:00:05]} 27. b4 {[%clk 0:01:22]}  bxc5 {[%clk 0:00:04]} 28. bxc5 {[%clk 0:01:23]}  Rab8 {[%clk 0:00:05]} 29. Rxa6 {[%clk 0:01:22]}  Rxb2 {[%clk 0:00:05]} 30. Re6+ {[%clk 0:01:23]}  Kf7 {[%clk 0:00:05]} 31. Rxe5 {[%clk 0:01:23]}  Rc2 {[%clk 0:00:05]} 32. c6 {[%clk 0:01:23]}  Rc4 {[%clk 0:00:04]} 33. Re6 {[%clk 0:01:22]}  Rc2 {[%clk 0:00:02]} 34. g3 {[%clk 0:01:21]}  Rb8 {[%clk 0:00:02]} 35. Rf2 {[%clk 0:01:21]}  Rbb2 {[%clk 0:00:02]} 36. Rxc2 {[%clk 0:01:15]}  Rxc2 {[%clk 0:00:03]} 37. h4 {[%clk 0:01:15]}  h5 {[%clk 0:00:03]} 38. Kf1 {[%clk 0:01:15]}  Rc1+ {[%clk 0:00:03]} 39. Ke2 {[%clk 0:01:15]}  Rc3 {[%clk 0:00:03]} 40. Kd2 {[%clk 0:01:11]}  Rxg3 {[%clk 0:00:03]} 41. d6 {[%clk 0:01:12]}  cxd6 {[%clk 0:00:02]} 42. c7 {[%clk 0:01:12]}  Rg2+ {[%clk 0:00:02]} 43. Kd3 {[%clk 0:01:11]}  Rg3+ {[%clk 0:00:02]} 44. Kd4 {[%clk 0:01:12]}  Rg1 {[%clk 0:00:01]} 45. c8=Q {[%clk 0:01:11]}  Rd1+ {[%clk 0:00:02]} 46. Ke3 {[%clk 0:01:12]} 1-0


[Site "https://www.chess.com"]

[Event "Titled Tuesday Blitz April 12 Late 2022"]
[White "Tillyaev, Ulugbek"]
[Black "Yoo, Christopher Woojin"]
[WhiteFideId "14202441"]
[BlackFideId "30909694"]
[WhiteElo "2377"]
[BlackElo "2105"]
[Result "0-1"]
[Round "02"]
[TimeControl "180+1"]
[Date "2022.04.12"]
[WhiteClock "0:00:06"]
[BlackClock "0:00:07"]

1. c4 {[%clk 0:03:00]}  Nf6 {[%clk 0:02:56]} 2. Nc3 {[%clk 0:03:00]}  g6 {[%clk 0:02:54]} 3. g3 {[%clk 0:02:59]}  Bg7 {[%clk 0:02:54]} 4. Bg2 {[%clk 0:03:00]}  O-O {[%clk 0:02:54]} 5. Nf3 {[%clk 0:03:00]}  d6 {[%clk 0:02:54]} 6. d4 {[%clk 0:03:00]}  Bf5 {[%clk 0:02:52]} 7. Nh4 {[%clk 0:02:51]}  Bc8 {[%clk 0:02:50]} 8. O-O {[%clk 0:02:51]}  Nc6 {[%clk 0:02:30]} 9. d5 {[%clk 0:02:42]}  Ne5 {[%clk 0:01:51]} 10. b3 {[%clk 0:02:27]}  c6 {[%clk 0:01:34]} 11. Bb2 {[%clk 0:02:17]}  Bd7 {[%clk 0:01:29]} 12. Qd2 {[%clk 0:02:13]}  a5 {[%clk 0:01:26]} 13. h3 {[%clk 0:01:43]}  a4 {[%clk 0:01:24]} 14. f4 {[%clk 0:01:36]}  a3 {[%clk 0:01:16]} 15. Bc1 {[%clk 0:01:36]}  Neg4 {[%clk 0:01:15]} 16. hxg4 {[%clk 0:01:33]}  Nxg4 {[%clk 0:01:16]} 17. Rb1 {[%clk 0:01:25]}  Qb6+ {[%clk 0:01:15]} 18. e3 {[%clk 0:01:25]}  Nxe3 {[%clk 0:01:12]} 19. Kh1 {[%clk 0:00:58]}  Nxf1 {[%clk 0:01:11]} 20. Bxf1 {[%clk 0:00:59]}  Bxc3 {[%clk 0:00:50]} 21. Qxc3 {[%clk 0:00:59]}  Qf2 {[%clk 0:00:45]} 22. Bd2 {[%clk 0:00:52]}  cxd5 {[%clk 0:00:40]} 23. Qe3 {[%clk 0:00:47]}  Qxe3 {[%clk 0:00:39]} 24. Bxe3 {[%clk 0:00:48]}  dxc4 {[%clk 0:00:39]} 25. Bxc4 {[%clk 0:00:48]}  Rfc8 {[%clk 0:00:37]} 26. Re1 {[%clk 0:00:44]}  b5 {[%clk 0:00:33]} 27. Bd5 {[%clk 0:00:44]}  Bc6 {[%clk 0:00:33]} 28. Bxc6 {[%clk 0:00:43]}  Rxc6 {[%clk 0:00:34]} 29. Bd4 {[%clk 0:00:42]}  Rc2 {[%clk 0:00:34]} 30. Rxe7 {[%clk 0:00:41]}  Rxa2 {[%clk 0:00:35]} 31. Nf3 {[%clk 0:00:34]}  Rb2 {[%clk 0:00:27]} 32. Ng5 {[%clk 0:00:31]}  Rb1+ {[%clk 0:00:22]} 33. Kg2 {[%clk 0:00:31]}  a2 {[%clk 0:00:22]} 34. Rxf7 {[%clk 0:00:24]}  a1=Q {[%clk 0:00:21]} 35. Rg7+ {[%clk 0:00:22]}  Kf8 {[%clk 0:00:21]} 36. Nxh7+ {[%clk 0:00:20]}  Ke8 {[%clk 0:00:19]} 37. Nf6+ {[%clk 0:00:20]}  Kf8 {[%clk 0:00:16]} 38. Nd7+ {[%clk 0:00:17]}  Ke8 {[%clk 0:00:16]} 39. Nf6+ {[%clk 0:00:17]}  Kd8 {[%clk 0:00:16]} 40. Bxa1 {[%clk 0:00:16]}  Raxa1 {[%clk 0:00:12]} 41. Rxg6 {[%clk 0:00:17]}  Rb2+ {[%clk 0:00:12]} 42. Kh3 {[%clk 0:00:18]}  Rxb3 {[%clk 0:00:12]} 43. Nd5 {[%clk 0:00:17]}  Kd7 {[%clk 0:00:11]} 44. f5 {[%clk 0:00:18]}  Rf1 {[%clk 0:00:12]} 45. f6 {[%clk 0:00:17]}  Rd3 {[%clk 0:00:11]} 46. Rg5 {[%clk 0:00:13]}  Rd4 {[%clk 0:00:07]} 47. Nf4 {[%clk 0:00:12]}  Rdxf4 {[%clk 0:00:04]} 48. gxf4 {[%clk 0:00:12]}  Rxf4 {[%clk 0:00:05]} 49. Rxb5 {[%clk 0:00:13]}  Rxf6 {[%clk 0:00:06]} 50. Kg4 {[%clk 0:00:13]}  Ke6 {[%clk 0:00:07]} 51. Kg5 {[%clk 0:00:14]}  Rf1 {[%clk 0:00:06]} 52. Rb8 {[%clk 0:00:09]}  d5 {[%clk 0:00:06]} 53. Re8+ {[%clk 0:00:09]}  Kd6 {[%clk 0:00:06]} 54. Rd8+ {[%clk 0:00:05]}  Ke5 {[%clk 0:00:04]} 55. Rc8 {[%clk 0:00:06]}  Ke4 {[%clk 0:00:04]} 56. Kg4 {[%clk 0:00:07]}  d4 {[%clk 0:00:04]} 57. Re8+ {[%clk 0:00:08]}  Kd3 {[%clk 0:00:05]} 58. Rd8 {[%clk 0:00:09]}  Ke3 {[%clk 0:00:05]} 59. Kg3 {[%clk 0:00:10]}  d3 {[%clk 0:00:05]} 60. Re8+ {[%clk 0:00:10]}  Kd2 {[%clk 0:00:04]} 61. Kg2 {[%clk 0:00:11]}  Rf7 {[%clk 0:00:04]} 62. Rd8 {[%clk 0:00:12]}  Ke2 {[%clk 0:00:04]} 63. Rc8 {[%clk 0:00:13]}  d2 {[%clk 0:00:04]} 64. Re8+ {[%clk 0:00:14]}  Kd1 {[%clk 0:00:05]} 65. Rd8 {[%clk 0:00:14]}  Rf5 {[%clk 0:00:05]} 66. Re8 {[%clk 0:00:14]}  Kc2 {[%clk 0:00:05]} 67. Rc8+ {[%clk 0:00:14]}  Kd3 {[%clk 0:00:06]} 68. Rd8+ {[%clk 0:00:14]}  Ke3 {[%clk 0:00:07]} 69. Re8+ {[%clk 0:00:12]}  Kd4 {[%clk 0:00:06]} 70. Rd8+ {[%clk 0:00:05]}  Rd5 {[%clk 0:00:05]} 71. Rxd5+ {[%clk 0:00:02]}  Kxd5 {[%clk 0:00:06]} 72. Kf2 {[%clk 0:00:03]}  d1=Q {[%clk 0:00:06]} 73. Ke3 {[%clk 0:00:04]}  Qg4 {[%clk 0:00:04]} 74. Kd3 {[%clk 0:00:04]}  Qf3+ {[%clk 0:00:04]} 75. Kd2 {[%clk 0:00:05]}  Kd4 {[%clk 0:00:05]} 76. Ke1 {[%clk 0:00:06]}  Qg2 {[%clk 0:00:06]} 77. Kd1 {[%clk 0:00:06]}  Kd3 {[%clk 0:00:07]} 0-1


[Site "https://www.chess.com"]

[Event "Titled Tuesday Blitz April 12 Late 2022"]
[White "Van Foreest, Jorden"]
[Black "Koziorowicz, Michal"]
[WhiteFideId "1039784"]
[BlackFideId "21809194"]
[WhiteElo "2609"]
[BlackElo "2235"]
[Result "1-0"]
[Round "02"]
[TimeControl "180+1"]
[Date "2022.04.12"]
[WhiteClock "0:00:44"]
[BlackClock "0:00:23"]

1. f4 {[%clk 0:03:00]}  f5 {[%clk 0:02:54]} 2. Nf3 {[%clk 0:03:00]}  Nf6 {[%clk 0:02:55]} 3. g3 {[%clk 0:02:58]}  g6 {[%clk 0:02:55]} 4. Bg2 {[%clk 0:02:58]}  Bg7 {[%clk 0:02:56]} 5. O-O {[%clk 0:02:59]}  O-O {[%clk 0:02:56]} 6. d3 {[%clk 0:02:58]}  d6 {[%clk 0:02:55]} 7. Nc3 {[%clk 0:02:57]}  Nc6 {[%clk 0:02:55]} 8. e4 {[%clk 0:02:57]}  e5 {[%clk 0:02:55]} 9. fxe5 {[%clk 0:02:32]}  dxe5 {[%clk 0:02:38]} 10. Be3 {[%clk 0:02:29]}  f4 {[%clk 0:02:31]} 11. Bc5 {[%clk 0:02:25]}  Re8 {[%clk 0:02:26]} 12. gxf4 {[%clk 0:02:25]}  exf4 {[%clk 0:02:26]} 13. Qd2 {[%clk 0:02:15]}  Nh5 {[%clk 0:02:22]} 14. Rae1 {[%clk 0:02:11]}  Bg4 {[%clk 0:02:22]} 15. Nd5 {[%clk 0:02:09]}  Ne5 {[%clk 0:02:03]} 16. Nxe5 {[%clk 0:02:08]}  Bxe5 {[%clk 0:02:04]} 17. d4 {[%clk 0:02:08]}  Bd6 {[%clk 0:02:00]} 18. Bxd6 {[%clk 0:02:04]}  Qxd6 {[%clk 0:02:01]} 19. e5 {[%clk 0:02:01]}  Qa6 {[%clk 0:01:58]} 20. Rxf4 {[%clk 0:01:58]}  Nxf4 {[%clk 0:01:54]} 21. Nf6+ {[%clk 0:01:54]}  Kg7 {[%clk 0:01:14]} 22. Qxf4 {[%clk 0:01:50]}  Bf5 {[%clk 0:01:14]} 23. Nxe8+ {[%clk 0:01:40]}  Rxe8 {[%clk 0:01:15]} 24. Be4 {[%clk 0:01:12]}  Bxe4 {[%clk 0:01:12]} 25. Qxe4 {[%clk 0:01:13]}  Qxa2 {[%clk 0:01:03]} 26. Qxb7 {[%clk 0:01:11]}  Qc4 {[%clk 0:01:02]} 27. c3 {[%clk 0:01:11]}  Re7 {[%clk 0:01:01]} 28. Rf1 {[%clk 0:01:11]}  Qe2 {[%clk 0:00:57]} 29. Qf3 {[%clk 0:01:10]}  Qxf3 {[%clk 0:00:56]} 30. Rxf3 {[%clk 0:01:10]}  Rd7 {[%clk 0:00:56]} 31. Kf2 {[%clk 0:01:10]}  Rd5 {[%clk 0:00:50]} 32. Ke3 {[%clk 0:01:10]}  a5 {[%clk 0:00:50]} 33. Ke4 {[%clk 0:01:10]}  Rb5 {[%clk 0:00:50]} 34. Rf2 {[%clk 0:01:10]}  c6 {[%clk 0:00:33]} 35. e6 {[%clk 0:01:09]}  a4 {[%clk 0:00:28]} 36. c4 {[%clk 0:01:08]}  Rb8 {[%clk 0:00:25]} 37. d5 {[%clk 0:01:08]}  cxd5+ {[%clk 0:00:24]} 38. cxd5 {[%clk 0:01:09]}  Rb4+ {[%clk 0:00:22]} 39. Ke5 {[%clk 0:01:09]}  Rxb2 {[%clk 0:00:23]} 40. Rxb2 {[%clk 0:00:44]} 1-0


[Site "https://www.chess.com"]

[Event "Titled Tuesday Blitz April 12 Late 2022"]
[White "Winkels, Marcel"]
[Black "Avramidou, Anastasia"]
[WhiteFideId "1003887"]
[BlackFideId "4239873"]
[WhiteElo "1900"]
[BlackElo "2183"]
[Result "0-1"]
[Round "02"]
[TimeControl "180+1"]
[Date "2022.04.13"]
[WhiteClock "0:00:03"]
[BlackClock "0:00:48"]

1. e4 {[%clk 0:03:00]}  c6 {[%clk 0:02:54]} 2. d4 {[%clk 0:02:59]}  g6 {[%clk 0:02:53]} 3. Nc3 {[%clk 0:02:58]}  Bg7 {[%clk 0:02:50]} 4. f4 {[%clk 0:02:57]}  d5 {[%clk 0:02:42]} 5. e5 {[%clk 0:02:56]}  Nh6 {[%clk 0:02:41]} 6. Nf3 {[%clk 0:02:48]}  O-O {[%clk 0:02:34]} 7. Bd3 {[%clk 0:02:47]}  f6 {[%clk 0:02:33]} 8. O-O {[%clk 0:02:46]}  e6 {[%clk 0:02:30]} 9. Bd2 {[%clk 0:02:30]}  c5 {[%clk 0:02:20]} 10. dxc5 {[%clk 0:02:27]}  Nd7 {[%clk 0:02:19]} 11. exf6 {[%clk 0:02:20]}  Bxf6 {[%clk 0:02:18]} 12. Qe2 {[%clk 0:02:05]}  Nxc5 {[%clk 0:02:16]} 13. Ne5 {[%clk 0:02:05]}  Nxd3 {[%clk 0:02:11]} 14. cxd3 {[%clk 0:02:03]}  Nf5 {[%clk 0:02:11]} 15. Rac1 {[%clk 0:01:50]}  Qb6+ {[%clk 0:02:04]} 16. Qf2 {[%clk 0:01:42]}  Qxb2 {[%clk 0:02:01]} 17. Rb1 {[%clk 0:01:28]}  Qa3 {[%clk 0:01:59]} 18. Rb3 {[%clk 0:01:07]}  Qd6 {[%clk 0:01:56]} 19. Nb5 {[%clk 0:01:05]}  Qd8 {[%clk 0:01:49]} 20. Bb4 {[%clk 0:01:04]}  Re8 {[%clk 0:01:43]} 21. Nd6 {[%clk 0:01:03]}  Nxd6 {[%clk 0:01:42]} 22. Qg3 {[%clk 0:00:44]}  Nf5 {[%clk 0:01:40]} 23. Qg4 {[%clk 0:00:42]}  Ne3 {[%clk 0:01:33]} 24. Qg3 {[%clk 0:00:37]}  Nxf1 {[%clk 0:01:33]} 25. Kxf1 {[%clk 0:00:37]}  Bg7 {[%clk 0:01:25]} 26. Bc3 {[%clk 0:00:35]}  d4 {[%clk 0:01:21]} 27. Bb4 {[%clk 0:00:31]}  Bd7 {[%clk 0:01:21]} 28. h4 {[%clk 0:00:20]}  Ba4 {[%clk 0:01:10]} 29. Rb2 {[%clk 0:00:18]}  Qf6 {[%clk 0:00:58]} 30. Rf2 {[%clk 0:00:16]}  a5 {[%clk 0:00:56]} 31. Bd6 {[%clk 0:00:13]}  Rad8 {[%clk 0:00:54]} 32. Nc4 {[%clk 0:00:12]}  Bb5 {[%clk 0:00:47]} 33. Be5 {[%clk 0:00:12]}  Qf5 {[%clk 0:00:47]} 34. Nd6 {[%clk 0:00:07]}  Qxd3+ {[%clk 0:00:46]} 35. Qxd3 {[%clk 0:00:03]}  Bxd3+ {[%clk 0:00:47]} 36. Kg1 {[%clk 0:00:03]}  Rf8 {[%clk 0:00:48]} 0-1


[Site "https://www.chess.com"]

[Event "Titled Tuesday Blitz April 12 Late 2022"]
[White "Xie, Bryan"]
[Black "Karas, Marek"]
[WhiteFideId "30941296"]
[BlackFideId "14928558"]
[WhiteElo "1899"]
[BlackElo "2271"]
[Result "0-1"]
[Round "02"]
[TimeControl "180+1"]
[Date "2022.04.13"]
[WhiteClock "0:01:11"]
[BlackClock "0:02:14"]

1. e4 {[%clk 0:02:55]}  e6 {[%clk 0:02:59]} 2. d4 {[%clk 0:02:55]}  d5 {[%clk 0:02:59]} 3. Nc3 {[%clk 0:02:55]}  Nf6 {[%clk 0:02:58]} 4. e5 {[%clk 0:02:56]}  Nfd7 {[%clk 0:02:58]} 5. f4 {[%clk 0:02:57]}  c5 {[%clk 0:02:58]} 6. Nf3 {[%clk 0:02:57]}  Nc6 {[%clk 0:02:59]} 7. Be3 {[%clk 0:02:57]}  Be7 {[%clk 0:02:59]} 8. Qd2 {[%clk 0:02:57]}  O-O {[%clk 0:02:58]} 9. O-O-O {[%clk 0:02:58]}  c4 {[%clk 0:02:54]} 10. f5 {[%clk 0:02:51]}  b5 {[%clk 0:02:53]} 11. g4 {[%clk 0:02:43]}  b4 {[%clk 0:02:52]} 12. Ne2 {[%clk 0:02:35]}  c3 {[%clk 0:02:46]} 13. bxc3 {[%clk 0:02:18]}  Qa5 {[%clk 0:02:44]} 14. Kb1 {[%clk 0:01:36]}  Nb6 {[%clk 0:02:41]} 15. Nc1 {[%clk 0:01:31]}  bxc3 {[%clk 0:02:35]} 16. Qe1 {[%clk 0:01:31]}  Qa3 {[%clk 0:02:29]} 17. Nd3 {[%clk 0:01:24]}  Nb4 {[%clk 0:02:21]} 18. Qxc3 {[%clk 0:01:11]}  Qxc3 {[%clk 0:02:18]} 19. Bd2 {[%clk 0:01:11]}  Qxc2+ {[%clk 0:02:14]} 0-1


[Site "https://www.chess.com"]

[Event "Titled Tuesday Blitz April 12 Late 2022"]
[White "Zanette, Edgard Vinicius"]
[Black "Kovanova, Baira"]
[WhiteFideId "2109263"]
[BlackFideId "4164083"]
[WhiteElo "2182"]
[BlackElo "2190"]
[Result "1-0"]
[Round "02"]
[TimeControl "180+1"]
[Date "2022.04.13"]
[WhiteClock "0:00:04"]
[BlackClock "0:00:36"]

1. e4 {[%clk 0:03:00]}  e5 {[%clk 0:02:59]} 2. Nf3 {[%clk 0:03:00]}  Nc6 {[%clk 0:02:59]} 3. Bb5 {[%clk 0:03:00]}  a6 {[%clk 0:02:59]} 4. Ba4 {[%clk 0:03:00]}  Nge7 {[%clk 0:02:59]} 5. O-O {[%clk 0:02:58]}  g6 {[%clk 0:02:59]} 6. c3 {[%clk 0:02:57]}  Bg7 {[%clk 0:02:59]} 7. d4 {[%clk 0:02:57]}  exd4 {[%clk 0:02:59]} 8. cxd4 {[%clk 0:02:58]}  b5 {[%clk 0:02:59]} 9. Bb3 {[%clk 0:02:57]}  d6 {[%clk 0:02:59]} 10. h3 {[%clk 0:02:53]}  O-O {[%clk 0:02:59]} 11. a4 {[%clk 0:02:48]}  Bb7 {[%clk 0:02:50]} 12. Nc3 {[%clk 0:02:35]}  b4 {[%clk 0:02:43]} 13. Nd5 {[%clk 0:02:31]}  Na5 {[%clk 0:02:42]} 14. Nxe7+ {[%clk 0:01:32]}  Qxe7 {[%clk 0:02:42]} 15. Re1 {[%clk 0:01:22]}  Nxb3 {[%clk 0:02:36]} 16. Qxb3 {[%clk 0:01:22]}  c5 {[%clk 0:02:37]} 17. dxc5 {[%clk 0:01:12]}  dxc5 {[%clk 0:02:36]} 18. Bg5 {[%clk 0:01:13]}  Qc7 {[%clk 0:02:30]} 19. Rac1 {[%clk 0:01:09]}  a5 {[%clk 0:02:28]} 20. Be3 {[%clk 0:01:05]}  Bxe4 {[%clk 0:02:22]} 21. Bxc5 {[%clk 0:01:02]}  Rfe8 {[%clk 0:02:22]} 22. Bf8 {[%clk 0:00:51]}  Qb7 {[%clk 0:02:21]} 23. Bxg7 {[%clk 0:00:51]}  Kxg7 {[%clk 0:02:21]} 24. Re3 {[%clk 0:00:41]}  Rac8 {[%clk 0:02:19]} 25. Rce1 {[%clk 0:00:36]}  Bc6 {[%clk 0:02:12]} 26. Rxe8 {[%clk 0:00:32]}  Rxe8 {[%clk 0:02:12]} 27. Rxe8 {[%clk 0:00:31]}  Bxe8 {[%clk 0:02:12]} 28. Qe3 {[%clk 0:00:31]}  Bxa4 {[%clk 0:01:55]} 29. Qe5+ {[%clk 0:00:27]}  f6 {[%clk 0:01:56]} 30. Qxa5 {[%clk 0:00:28]}  Bc6 {[%clk 0:01:56]} 31. Ne1 {[%clk 0:00:23]}  Qe7 {[%clk 0:01:55]} 32. Kf1 {[%clk 0:00:16]}  b3 {[%clk 0:01:53]} 33. f3 {[%clk 0:00:12]}  Qd7 {[%clk 0:01:44]} 34. Kf2 {[%clk 0:00:11]}  Qd4+ {[%clk 0:01:38]} 35. Kg3 {[%clk 0:00:11]}  h5 {[%clk 0:01:27]} 36. Qc7+ {[%clk 0:00:10]}  Bd7 {[%clk 0:01:27]} 37. Kh2 {[%clk 0:00:06]}  Kh6 {[%clk 0:01:15]} 38. Qg3 {[%clk 0:00:05]}  h4 {[%clk 0:01:13]} 39. Qc7 {[%clk 0:00:05]}  Be6 {[%clk 0:01:05]} 40. f4 {[%clk 0:00:05]}  Bd5 {[%clk 0:00:53]} 41. Qd6 {[%clk 0:00:04]}  f5 {[%clk 0:00:42]} 42. Nf3 {[%clk 0:00:03]}  Qe4 {[%clk 0:00:40]} 43. Qf8+ {[%clk 0:00:03]}  Kh7 {[%clk 0:00:36]} 44. Ng5# {[%clk 0:00:04]} 1-0


[Site "https://www.chess.com"]

[Event "Titled Tuesday Blitz April 12 Late 2022"]
[White "Zhou, Qiyu"]
[Black "Savchenko, Boris"]
[WhiteFideId "505161"]
[BlackFideId "4147332"]
[WhiteElo "2368"]
[BlackElo "2741"]
[Result "0-1"]
[Round "02"]
[TimeControl "180+1"]
[Date "2022.04.13"]
[WhiteClock "0:00:08"]
[BlackClock "0:00:11"]

1. e4 {[%clk 0:02:45]}  c6 {[%clk 0:02:57]} 2. d4 {[%clk 0:02:45]}  d5 {[%clk 0:02:58]} 3. e5 {[%clk 0:02:44]}  Bf5 {[%clk 0:02:57]} 4. Nf3 {[%clk 0:02:43]}  e6 {[%clk 0:02:57]} 5. Be2 {[%clk 0:02:42]}  Be7 {[%clk 0:02:52]} 6. O-O {[%clk 0:02:40]}  c5 {[%clk 0:02:51]} 7. Be3 {[%clk 0:02:35]}  Nc6 {[%clk 0:02:44]} 8. c4 {[%clk 0:02:30]}  dxc4 {[%clk 0:02:43]} 9. Bxc4 {[%clk 0:02:31]}  Nh6 {[%clk 0:02:37]} 10. dxc5 {[%clk 0:02:13]}  Ng4 {[%clk 0:02:35]} 11. Bf4 {[%clk 0:02:05]}  Qxd1 {[%clk 0:02:33]} 12. Rxd1 {[%clk 0:02:06]}  Bxc5 {[%clk 0:02:33]} 13. Bg3 {[%clk 0:02:03]}  h5 {[%clk 0:02:25]} 14. h3 {[%clk 0:02:01]}  h4 {[%clk 0:02:25]} 15. hxg4 {[%clk 0:01:30]}  Bxb1 {[%clk 0:02:19]} 16. Bxh4 {[%clk 0:01:18]}  Be4 {[%clk 0:02:16]} 17. Bg3 {[%clk 0:01:17]}  Ke7 {[%clk 0:02:11]} 18. Bh4+ {[%clk 0:01:13]}  Kf8 {[%clk 0:02:10]} 19. Bg3 {[%clk 0:01:12]}  Ke7 {[%clk 0:02:03]} 20. Bh4+ {[%clk 0:01:11]}  Rxh4 {[%clk 0:01:50]} 21. Nxh4 {[%clk 0:01:11]}  g5 {[%clk 0:01:26]} 22. Nf3 {[%clk 0:01:09]}  Bxf3 {[%clk 0:01:26]} 23. gxf3 {[%clk 0:01:10]}  Nxe5 {[%clk 0:01:26]} 24. Be2 {[%clk 0:01:10]}  Ng6 {[%clk 0:01:15]} 25. Rac1 {[%clk 0:01:06]}  Bd6 {[%clk 0:01:02]} 26. Bf1 {[%clk 0:00:48]}  Rb8 {[%clk 0:00:59]} 27. Rc2 {[%clk 0:00:45]}  Bf4 {[%clk 0:00:58]} 28. Bb5 {[%clk 0:00:39]}  Ne5 {[%clk 0:00:57]} 29. Kf1 {[%clk 0:00:32]}  a6 {[%clk 0:00:53]} 30. Ba4 {[%clk 0:00:25]}  Kf6 {[%clk 0:00:51]} 31. Ke2 {[%clk 0:00:22]}  Rh8 {[%clk 0:00:46]} 32. Bb3 {[%clk 0:00:17]}  Rh2 {[%clk 0:00:44]} 33. Rf1 {[%clk 0:00:15]}  Rh3 {[%clk 0:00:40]} 34. Rc3 {[%clk 0:00:14]}  b5 {[%clk 0:00:35]} 35. a3 {[%clk 0:00:14]}  a5 {[%clk 0:00:33]} 36. Bd1 {[%clk 0:00:09]}  b4 {[%clk 0:00:31]} 37. axb4 {[%clk 0:00:10]}  axb4 {[%clk 0:00:31]} 38. Rb3 {[%clk 0:00:10]}  Nc6 {[%clk 0:00:31]} 39. Rd3 {[%clk 0:00:08]}  Be5 {[%clk 0:00:26]} 40. b3 {[%clk 0:00:05]}  Nd4+ {[%clk 0:00:21]} 41. Kd2 {[%clk 0:00:06]}  Bf4+ {[%clk 0:00:19]} 42. Ke1 {[%clk 0:00:05]}  Ke5 {[%clk 0:00:15]} 43. Rg1 {[%clk 0:00:01]}  Rh8 {[%clk 0:00:13]} 44. Kf1 {[%clk 0:00:01]}  Kd5 {[%clk 0:00:10]} 45. Kg2 {[%clk 0:00:02]}  Rh2+ {[%clk 0:00:09]} 46. Kf1 {[%clk 0:00:02]}  e5 {[%clk 0:00:09]} 47. Rg2 {[%clk 0:00:03]}  Rh1+ {[%clk 0:00:09]} 48. Rg1 {[%clk 0:00:03]}  Rh2 {[%clk 0:00:09]} 49. Rg2 {[%clk 0:00:03]}  Rh6 {[%clk 0:00:09]} 50. Rg1 {[%clk 0:00:04]}  Rh8 {[%clk 0:00:08]} 51. Kg2 {[%clk 0:00:04]}  e4 {[%clk 0:00:06]} 52. fxe4+ {[%clk 0:00:04]}  Kxe4 {[%clk 0:00:07]} 53. Be2 {[%clk 0:00:02]}  Nxe2 {[%clk 0:00:06]} 54. Rd7 {[%clk 0:00:02]}  Nxg1 {[%clk 0:00:06]} 55. Re7+ {[%clk 0:00:03]}  Be5 {[%clk 0:00:06]} 56. Kxg1 {[%clk 0:00:02]}  f6 {[%clk 0:00:06]} 57. Kg2 {[%clk 0:00:03]}  Rh2+ {[%clk 0:00:06]} 58. Kf1 {[%clk 0:00:03]}  Kf3 {[%clk 0:00:06]} 59. Ke1 {[%clk 0:00:02]}  Rh1+ {[%clk 0:00:06]} 60. Kd2 {[%clk 0:00:02]}  Rf1 {[%clk 0:00:07]} 61. Rb7 {[%clk 0:00:02]}  Rxf2+ {[%clk 0:00:08]} 62. Kd3 {[%clk 0:00:03]}  Re2 {[%clk 0:00:08]} 63. Kc4 {[%clk 0:00:04]}  Re3 {[%clk 0:00:08]} 64. Rxb4 {[%clk 0:00:04]}  Re4+ {[%clk 0:00:08]} 65. Kb5 {[%clk 0:00:04]}  Rxb4+ {[%clk 0:00:09]} 66. Kxb4 {[%clk 0:00:05]}  Kxg4 {[%clk 0:00:09]} 67. Kc5 {[%clk 0:00:06]}  Kf3 {[%clk 0:00:10]} 68. b4 {[%clk 0:00:07]}  g4 {[%clk 0:00:11]} 69. b5 {[%clk 0:00:08]}  g3 {[%clk 0:00:11]} 0-1


[Site "https://www.chess.com"]